Workbook

Sheet 034
A4: UNIVERSIDADE FEDERAL DE JATAÍ
A5: 34. Número Total de Alunos Ingressantes
B7: CURSOS | C7: 2004 | D7: 2005 | E7: 2006 | G7: Total | H7: 2007 | I7: 2008 | J7: 2009 | K7: 2010 | L7: 2011 | M7: 2012 | N7: 2013 | O7: 2014 | P7: 2015 | Q7: 2016 | R7: 2017 | S7: 2018 | T7: 2019 | U7: 2020 | V7: 2021 | W7: 2022 | X7: 2023 | Y7: 2024
E8: 1º Semestre | F8: 2º Semestre | AA8: Duração em Anos
A9: 1 | B9: AGRONOMIA | C9: 0 | D9: 29 | E9: 32 | F9: 24 | G9: =SUM(E9:F9) -> 56 | H9: 60 | I9: 63 | J9: 67 | K9: 65 | L9: 75 | M9: 72 | N9: 76 | O9: 65 | P9: 73 | Q9: 85 | R9: 70 | S9: 63 | T9: 63 | U9: 68 | V9: 53 | W9: 66 | X9: 69 | Y9: 72 | AA9: 5
A10: 2 | B10: BIOMEDICINA | C10: - | D10: - | E10: - | F10: - | G10: - | H10: 37 | I10: 39 | J10: 34 | K10: 41 | L10: 40 | M10: 43 | N10: 43 | O10: 34 | P10: 29 | Q10: 35 | R10: 58 | S10: 41 | T10: 41 | U10: 33 | V10: 41 | W10: 47 | X10: 39 | Y10: 44 | AA10: 4
A11: 3 | B11: CIÊNCIAS BIOLÓGICAS - BACHARELADO | C11: 12 | D11: 10 | E11: 11 | F11: - | G11: =SUM(E11:F11) -> 11 | H11: 26 | I11: 28 | J11: 28 | K11: 18 | L11: 26 | M11: 25 | N11: 28 | O11: 24 | P11: 38 | Q11: 38 | R11: 46 | S11: 28 | T11: 32 | U11: 34 | V11: 35 | W11: 35 | X11: 35 | Y11: 46 | AA11: 4
A12: 4 | B12: CIÊNCIAS BIOLÓGICAS - LICENCIATURA | C12: 30 | D12: 28 | E12: 28 | F12: - | G12: 28 | H12: 16 | I12: 17 | J12: 21 | K12: 7 | L12: 22 | M12: 13 | N12: 13 | O12: 7 | P12: 26 | Q12: 22 | R12: 22 | S12: 26 | T12: 29 | U12: 21 | V12: 27 | W12: 15 | X12: 33 | Y12: 12 | AA12: 4
A13: 5 | B13: CIÊNCIAS DA COMPUTAÇÃO | C13: - | D13: - | E13: - | F13: - | G13: - | H13: - | I13: 30 | J13: 47 | K13: 46 | L13: 39 | M13: 41 | N13: 32 | O13: 41 | P13: 43 | Q13: 56 | R13: 50 | S13: 43 | T13: 49 | U13: 47 | V13: 50 | W13: 53 | X13: 54 | Y13: 48 | AA13: 4
A14: 6 | B14: DIREITO | C14: - | D14: - | E14: - | F14: - | G14: - | H14: - | I14: - | J14: 61 | K14: 59 | L14: 69 | M14: 73 | N14: 73 | O14: 71 | P14: 70 | Q14: 75 | R14: 70 | S14: 72 | T14: 78 | U14: 69 | V14: 68 | W14: 81 | X14: 69 | Y14: 76 | AA14: 5
A15: 7 | B15: EDUCAÇÃO FÍSICA - BACHARELADO | C15: - | D15: - | E15: - | F15: - | G15: - | H15: - | I15: - | J15: - | K15: 41 | L15: 35 | M15: 39 | N15: 41 | O15: 40 | P15: 52 | Q15: 49 | R15: 47 | S15: 45 | T15: 46 | U15: 30 | V15: 46 | W15: 39 | X15: 33 | Y15: 30 | AA15: 4
A16: 8 | B16: EDUCAÇÃO FÍSICA - LICENCIATURA | C16: 0 | D16: 39 | E16: 39 | F16: - | G16: =SUM(E16:F16) -> 39 | H16: 38 | I16: 40 | J16: 38 | K16: 21 | L16: 25 | M16: 18 | N16: 33 | O16: 24 | P16: 24 | Q16: 31 | R16: 30 | S16: 35 | T16: 33 | U16: 23 | V16: 30 | W16: 17 | X16: 36 | Y16: 26 | AA16: 4
A17: 9 | B17: ENFERMAGEM | C17: - | D17: - | E17: - | F17: - | G17: - | H17: - | I17: 28 | J17: 29 | K17: 24 | L17: 31 | M17: 30 | N17: 34 | O17: 24 | P17: 30 | Q17: 33 | R17: 35 | S17: 38 | T17: 28 | U17: 29 | V17: 34 | W17: 36 | X17: 28 | Y17: 29 | AA17: 5
A18: 10 | B18: ENGENHARIA FLORESTAL | C18: - | D18: - | E18: - | F18: - | G18: - | H18: - | I18: - | J18: 44 | K18: 49 | L18: 44 | M18: 49 | N18: 40 | O18: 43 | P18: 49 | Q18: 54 | R18: 54 | S18: 44 | T18: 45 | U18: 35 | V18: 41 | W18: 36 | X18: 39 | Y18: 41 | AA18: 5
A19: 11 | B19: FÍSICA | C19: - | D19: - | E19: - | F19: 23 | G19: =SUM(E19:F19) -> 23 | H19: 17 | I19: 6 | J19: 11 | K19: 13 | L19: 12 | M19: 8 | N19: 6 | O19: 17 | P19: 26 | Q19: 34 | R19: 22 | S19: 22 | T19: 23 | U19: 8 | V19: 10 | W19: 8 | X19: 5 | Y19: 5 | AA19: 4
A20: 12 | B20: FISIOTERAPIA | C20: - | D20: - | E20: - | F20: - | G20: - | H20: - | I20: - | J20: - | K20: 39 | L20: 40 | M20: 36 | N20: 46 | O20: 38 | P20: 31 | Q20: 48 | R20: 52 | S20: 42 | T20: 41 | U20: 29 | V20: 43 | W20: 45 | X20: 41 | Y20: 42 | AA20: 5
A21: 13 | B21: GEOGRAFIA - ABI | C21: 0 | D21: 13 | E21: 3 | F21: - | G21: =SUM(E21:F21) -> 3 | H21: 9 | I21: 6 | J21: 11 | K21: 8 | L21: 5 | M21: 7 | N21: 12 | O21: 14 | P21: 9 | Q21: 21 | R21: 10 | S21: Extinto | AA21: 0
A22: 14 | B22: GEOGRAFIA - BACHARELADO | C22: 0 | D22: 3 | E22: 8 | F22: 1 | G22: 9 | H22: 6 | I22: 31 | J22: 8 | K22: 16 | L22: 12 | M22: 4 | N22: 15 | O22: 12 | P22: 16 | Q22: 16 | R22: 7 | S22: 21 | T22: 20 | U22: 22 | V22: 20 | W22: 16 | X22: 9 | Y22: 14 | AA22: 4
A23: 15 | B23: GEOGRAFIA - LICENCIATURA | C23: 0 | D23: 23 | E23: 30 | F23: 1 | G23: 31 | H23: 24 | I23: 18 | J23: 26 | K23: 21 | L23: 22 | M23: 13 | N23: 13 | O23: 16 | P23: 8 | Q23: 13 | R23: 26 | S23: 21 | T23: 24 | U23: 16 | V23: 19 | W23: 17 | X23: 15 | Y23: 15 | AA23: 4
A24: 16 | B24: HISTÓRIA | C24: - | D24: - | E24: - | F24: 47 | G24: 47 | H24: 39 | I24: 40 | J24: 45 | K24: 25 | L24: 31 | M24: 24 | N24: 25 | O24: 26 | P24: 38 | Q24: 41 | R24: 49 | S24: 40 | T24: 48 | U24: 42 | V24: 45 | W24: 43 | X24: 40 | Y24: 36 | AA24: 4
A25: 17 | B25: LETRAS - INGLÊS | C25: 0 | D25: 25 | E25: 29 | F25: 2 | G25: 31 | H25: 25 | I25: 15 | J25: 16 | K25: 14 | L25: 22 | M25: 13 | N25: 18 | O25: 14 | P25: 38 | Q25: 28 | R25: 18 | S25: 27 | T25: 28 | U25: 16 | V25: 28 | W25: 21 | X25: 20 | Y25: 17 | AA25: 4
A26: 18 | B26: LETRAS - PORTUGUÊS | C26: 0 | D26: 34 | E26: 34 | F26: - | G26: 34 | H26: 39 | I26: 25 | J26: 27 | K26: 30 | L26: 27 | M26: 23 | N26: 19 | O26: 18 | P26: 29 | Q26: 31 | R26: 29 | S26: 41 | T26: 37 | U26: 31 | V26: 31 | W26: 23 | X26: 31 | Y26: 25 | AA26: 4
A27: 19 | B27: MATEMÁTICA | C27: 0 | D27: 32 | E27: 30 | F27: - | G27: 30 | H27: 39 | I27: 26 | J27: 18 | K27: 22 | L27: 21 | M27: 21 | N27: 14 | O27: 21 | P27: 29 | Q27: 22 | R27: 35 | S27: 23 | T27: 31 | U27: 19 | V27: 18 | W27: 11 | X27: 5 | Y27: 9 | AA27: 4
A28: 20 | B28: MEDICINA* | C28: - | D28: - | E28: - | F28: - | G28: - | H28: - | I28: - | J28: - | K28: - | L28: - | M28: - | N28: - | O28: 32 | P28: 77 | Q28: 96 | R28: 81 | S28: 81 | T28: 73 | U28: 72 | V28: 72 | W28: 85 | X28: 74 | Y28: 66 | AA28: 6
A29: 21 | B29: MEDICINA VETERINÁRIA | C29: 0 | D29: 30 | E29: 30 | F29: - | G29: =SUM(E29:F29) -> 30 | H29: 32 | I29: 27 | J29: 43 | K29: 63 | L29: 61 | M29: 68 | N29: 58 | O29: 64 | P29: 68 | Q29: 81 | R29: 66 | S29: 68 | T29: 64 | U29: 63 | V29: 73 | W29: 63 | X29: 65 | Y29: 74 | AA29: 5
A30: 22 | B30: PEDAGOGIA (MATUTINO) | C30: - | D30: - | E30: - | F30: - | G30: - | H30: - | I30: - | J30: 19 | K30: 22 | L30: 21 | M30: 25 | N30: 16 | O30: 31 | P30: 27 | Q30: 38 | R30: 43 | S30: 44 | T30: 40 | U30: 37 | V30: 32 | W30: 42 | X30: 40 | Y30: 42 | AA30: 4
A31: 23 | B31: PEDAGOGIA (NOTURNO) | C31: 75 | D31: 70 | E31: 73 | F31: 2 | G31: =SUM(E31:F31) -> 75 | H31: 68 | I31: 74 | J31: 44 | K31: 45 | L31: 44 | M31: 42 | N31: 45 | O31: 37 | P31: 47 | Q31: 51 | R31: 47 | S31: 53 | T31: 51 | U31: 41 | V31: 45 | W31: 44 | X31: 41 | Y31: 41 | AA31: 4
A32: 24 | B32: PSICOLOGIA | C32: - | D32: - | E32: - | F32: - | G32: - | H32: 35 | I32: 37 | J32: 40 | K32: 49 | L32: 50 | M32: 39 | N32: 49 | O32: 36 | P32: 35 | Q32: 59 | R32: 47 | S32: 45 | T32: 42 | U32: 36 | V32: 33 | W32: 49 | X32: 40 | Y32: 52 | AA32: 5
A33: 25 | B33: QUÍMICA - BACHARELADO | C33: - | D33: - | E33: - | F33: - | G33: - | H33: - | I33: - | J33: - | K33: - | L33: - | M33: 6 | N33: 14 | O33: 11 | P33: 12 | Q33: 26 | R33: 25 | S33: 19 | T33: 21 | U33: 25 | V33: 19 | W33: 8 | X33: 9 | Y33: 10 | AA33: 4
A34: 26 | B34: QUÍMICA - LICENCIATURA | C34: - | D34: - | E34: - | F34: 38 | G34: =SUM(E34:F34) -> 38 | H34: 35 | I34: 39 | J34: 23 | K34: 15 | L34: 18 | M34: 14 | N34: 9 | O34: 15 | P34: 29 | Q34: 30 | R34: 24 | S34: 19 | T34: 17 | U34: 13 | V34: 9 | W34: 1 | X34: 2 | Y34: 6 | AA34: 4
A35: 27 | B35: ZOOTECNIA | C35: - | D35: - | E35: - | F35: 29 | G35: 29 | H35: 30 | I35: 32 | J35: 33 | K35: 26 | L35: 28 | M35: 31 | N35: 36 | O35: 25 | P35: 22 | Q35: 35 | R35: 42 | S35: 36 | T35: 34 | U35: 32 | V35: 28 | W35: 26 | X35: 30 | Y35: 25 | AA35: 5
B36: TOTAL | C36: =SUM(C9:C35) -> 117 | D36: 336 | E36: 347 | F36: 167 | G36: 514 | H36: 575 | I36: 621 | J36: 733 | K36: 779 | L36: 820 | M36: 777 | N36: 808 | O36: 800 | P36: 975 | Q36: 1148 | R36: 1105 | S36: 1037 | T36: 1038 | U36: 891 | V36: 950 | W36: 927 | X36: 902 | Y36: 903
B39: Fonte: Sistema Integrado de Gestão de Atividades Acadêmicas (SIGAA) de 2004 a 2008
B40: Fonte: Dados Inep 2009 a 2017
B41: Dados referentes ao sistema semestral
B42: Legenda: - O curso não existia na UFJ
B43: * Entrada única em 2014/2
B44: ABI Área Básica de Ingresso: Designa uma situação em que uma única “entrada” possibilita ao estudante, após a conclusão de um conjunto básico de disciplinas, a escolha de uma entre duas ou mais formações acadêmicas.
B46: Somente os cursos de Ciências Biológicas (Licenciatura e Bacharelado) e Pedagogia tiveram entrada em 2004 no regime semestral.
B48: Fórmula de cálculo:

Sheet 036
A4: UNIVERSIDADE FEDERAL DE JATAÍ
A5: 36. Número de Alunos Diplomados na Graduação
B7: CURSOS | C7: 2007 | E7: TOTAL | F7: 2008 | H7: TOTAL | I7: 2009 | K7: TOTAL | L7: 2010 | N7: TOTAL | O7: 2011 | Q7: TOTAL | R7: 2012 | T7: TOTAL | U7: 2013 | W7: TOTAL | X7: 2014 | Z7: TOTAL | AA7: 2015 | AC7: TOTAL | AD7: 2016 | AF7: TOTAL | AG7: 2017 | AI7: TOTAL | AJ7: 2018 | AL7: TOTAL | AM7: 2019 | AO7: TOTAL | AP7: 2020 | AR7: TOTAL | AS7: 2021 | AU7: TOTAL | AV7: 2022 | AX7: TOTAL | AY7: 2023 | BA7: TOTAL | BB7: 2024 | BD7: TOTAL
C8: 1º Semestre | D8: 2º Semestre | F8: 1º Semestre | G8: 2º Semestre | I8: 1º Semestre | J8: 2º Semestre | L8: 1º Semestre | M8: 2º Semestre | O8: 1º Semestre | P8: 2º Semestre | R8: 1º Semestre | S8: 2º Semestre | U8: 1º Semestre | V8: 2º Semestre | X8: 1º Semestre | Y8: 2º Semestre | AA8: 1º Semestre | AB8: 2º Semestre | AD8: 1º Semestre | AE8: 2º Semestre | AG8: 1º Semestre | AH8: 2º Semestre | AJ8: 1º Semestre | AK8: 2º Semestre | AM8: 1º Semestre | AN8: 2º Semestre | AP8: 1º Semestre | AQ8: 2º Semestre | AS8: 1º Semestre | AT8: 2º Semestre | AV8: 1º Semestre | AW8: 2º Semestre | AY8: 1º Semestre | AZ8: 2º Semestre | BB8: 1º Semestre | BC8: 2º Semestre
A9: 1 | B9: AGRONOMIA | C9: . | D9: . | E9: . | F9: . | G9: 0 | H9: =SUM(F9:G9) -> 0 | I9: 5 | J9: 14 | K9: =SUM(I9:J9) -> 19 | L9: 24 | M9: 13 | N9: =SUM(L9:M9) -> 37 | O9: 34 | P9: 17 | Q9: =SUM(O9:P9) -> 51 | R9: 15 | S9: 15 | T9: =SUM(R9:S9) -> 30 | U9: 15 | V9: 17 | W9: =SUM(U9:V9) -> 32 | X9: 16 | Y9: 24 | Z9: =SUM(X9:Y9) -> 40 | AA9: 18 | AB9: 24 | AC9: =SUM(AA9:AB9) -> 42 | AD9: 12 | AE9: 35 | AF9: =SUM(AD9:AE9) -> 47 | AG9: 3 | AH9: 31 | AI9: =SUM(AG9:AH9) -> 34 | AJ9: 9 | AK9: 19 | AL9: =SUM(AJ9:AK9) -> 28 | AM9: 14 | AN9: 31 | AO9: =SUM(AM9:AN9) -> 45 | AP9: 27 | AQ9: 18 | AR9: =SUM(AP9:AQ9) -> 45 | AS9: 14 | AT9: 26 | AU9: =SUM(AS9:AT9) -> 40 | AV9: 16 | AW9: 27 | AX9: =SUM(AV9:AW9) -> 43 | AY9: 13 | AZ9: 41 | BA9: =SUM(AY9+AZ9) -> 54 | BB9: 4 | BC9: 17 | BD9: =SUM(BB9:BC9) -> 21
A10: 2 | B10: BIOMEDICINA | C10: . | D10: . | E10: . | F10: . | G10: . | H10: . | I10: . | J10: . | K10: . | L10: . | M10: 17 | N10: 17 | O10: 2 | P10: 28 | Q10: 30 | R10: 2 | S10: 25 | T10: 27 | U10: 0 | V10: 22 | W10: 22 | X10: 8 | Y10: 14 | Z10: 22 | AA10: 0 | AB10: 22 | AC10: 22 | AD10: 0 | AE10: 33 | AF10: 33 | AG10: 0 | AH10: 17 | AI10: 17 | AJ10: 0 | AK10: 16 | AL10: 16 | AM10: 3 | AN10: 18 | AO10: 21 | AP10: 10 | AQ10: 7 | AR10: 17 | AS10: 10 | AT10: 18 | AU10: 28 | AV10: 3 | AW10: 19 | AX10: 22 | AY10: 4 | AZ10: 18 | BA10: 22 | BB10: 6 | BC10: 18 | BD10: 24
A11: 3 | B11: CIÊNCIAS BIOLÓGICAS - BACHARELADO | C11: . | D11: 4 | E11: =SUM(C11:D11) -> 4 | F11: 0 | G11: 7 | H11: =SUM(F11:G11) -> 7 | I11: 0 | J11: 8 | K11: =SUM(I11:J11) -> 8 | L11: 0 | M11: 11 | N11: 11 | O11: 0 | P11: 10 | Q11: 10 | R11: 1 | S11: 8 | T11: 9 | U11: 0 | V11: 5 | W11: 5 | X11: 2 | Y11: 5 | Z11: 7 | AA11: 0 | AB11: 8 | AC11: 8 | AD11: 3 | AE11: 2 | AF11: 5 | AG11: 2 | AH11: 3 | AI11: 5 | AJ11: 3 | AK11: 3 | AL11: 6 | AM11: 3 | AN11: 2 | AO11: 5 | AP11: 4 | AQ11: 6 | AR11: 10 | AS11: 5 | AT11: 7 | AU11: 12 | AV11: 4 | AW11: 10 | AX11: 14 | AY11: 3 | AZ11: 7 | BA11: 10 | BB11: 2 | BC11: 2 | BD11: 4
A12: 4 | B12: CIÊNCIAS BIOLÓGICAS - LICENCIATURA | C12: . | D12: 11 | E12: 11 | F12: 0 | G12: 17 | H12: 17 | I12: 4 | J12: 16 | K12: 20 | L12: 1 | M12: 11 | N12: 12 | O12: 0 | P12: 9 | Q12: 9 | R12: 0 | S12: 1 | T12: 1 | U12: 3 | V12: 5 | W12: 8 | X12: 1 | Y12: 7 | Z12: 8 | AA12: 0 | AB12: 3 | AC12: 3 | AD12: 0 | AE12: 4 | AF12: 4 | AG12: 0 | AH12: 0 | AI12: 0 | AJ12: 1 | AK12: 2 | AL12: 3 | AM12: 1 | AN12: 2 | AO12: 3 | AP12: 2 | AQ12: 4 | AR12: 6 | AS12: 0 | AT12: 3 | AU12: 3 | AV12: 5 | AW12: 11 | AX12: 16 | AY12: 1 | AZ12: 8 | BA12: 9 | BB12: 1 | BC12: 5 | BD12: 6
A13: 5 | B13: CIÊNCIA DA COMPUTAÇÃO | C13: - | D13: - | E13: - | F13: . | G13: . | H13: . | I13: . | J13: . | K13: . | L13: . | M13: . | N13: . | O13: . | P13: 5 | Q13: 5 | R13: 0 | S13: 13 | T13: 13 | U13: 2 | V13: 15 | W13: 17 | X13: 1 | Y13: 6 | Z13: 7 | AA13: 2 | AB13: 8 | AC13: 10 | AD13: 5 | AE13: 9 | AF13: 14 | AG13: 8 | AH13: 9 | AI13: 17 | AJ13: 3 | AK13: 5 | AL13: 8 | AM13: 4 | AN13: 9 | AO13: 13 | AP13: 9 | AQ13: 10 | AR13: 19 | AS13: 6 | AT13: 9 | AU13: 15 | AV13: 2 | AW13: 18 | AX13: 20 | AY13: 3 | AZ13: 8 | BA13: 11 | BB13: 6 | BC13: 16 | BD13: 22
A14: 6 | B14: DIREITO | C14: - | D14: - | E14: - | F14: - | G14: - | H14: - | I14: . | J14: . | K14: . | L14: . | M14: . | N14: . | O14: . | P14: . | Q14: . | R14: . | S14: . | T14: . | U14: . | V14: 26 | W14: 26 | X14: 2 | Y14: 34 | Z14: 36 | AA14: 5 | AB14: 29 | AC14: 34 | AD14: 6 | AE14: 50 | AF14: 56 | AG14: 11 | AH14: 23 | AI14: 34 | AJ14: 10 | AK14: 51 | AL14: 61 | AM14: 8 | AN14: 27 | AO14: 35 | AP14: 5 | AQ14: 41 | AR14: 46 | AS14: 4 | AT14: 36 | AU14: 40 | AV14: 15 | AW14: 35 | AX14: 50 | AY14: 8 | AZ14: 34 | BA14: 42 | BB14: 9 | BC14: 37 | BD14: 46
A15: 7 | B15: EDUCAÇÃO FÍSICA - BACHARELADO | C15: - | D15: - | E15: - | F15: - | G15: - | H15: - | I15: - | J15: - | K15: - | L15: . | M15: . | N15: . | O15: . | P15: . | Q15: . | R15: . | S15: . | T15: . | U15: . | V15: 10 | W15: 10 | X15: 2 | Y15: 11 | Z15: 13 | AA15: 3 | AB15: 9 | AC15: 12 | AD15: 2 | AE15: 3 | AF15: 5 | AG15: 3 | AH15: 7 | AI15: 10 | AJ15: 1 | AK15: 12 | AL15: 13 | AM15: 5 | AN15: 14 | AO15: 19 | AP15: 1 | AQ15: 9 | AR15: 10 | AS15: 8 | AT15: 16 | AU15: 24 | AV15: 1 | AW15: 9 | AX15: 10 | AY15: 2 | AZ15: 11 | BA15: 13 | BB15: 1 | BC15: 11 | BD15: 12
A16: 8 | B16: EDUCAÇÃO FÍSICA - LICENCIATURA | C16: . | D16: 0 | E16: =SUM(C16:D16) -> 0 | F16: 0 | G16: 28 | H16: =SUM(F16:G16) -> 28 | I16: 0 | J16: 25 | K16: =SUM(I16:J16) -> 25 | L16: 0 | M16: 20 | N16: =SUM(L16:M16) -> 20 | O16: 0 | P16: 23 | Q16: =SUM(O16:P16) -> 23 | R16: 2 | S16: 16 | T16: =SUM(R16:S16) -> 18 | U16: 2 | V16: 11 | W16: 13 | X16: 0 | Y16: 14 | Z16: 14 | AA16: 0 | AB16: 12 | AC16: 12 | AD16: 1 | AE16: 6 | AF16: 7 | AG16: 3 | AH16: 5 | AI16: 8 | AJ16: 8 | AK16: 13 | AL16: 21 | AM16: 2 | AN16: 7 | AO16: 9 | AP16: 2 | AQ16: 10 | AR16: 12 | AS16: 3 | AT16: 9 | AU16: 12 | AV16: 7 | AW16: 9 | AX16: 16 | AY16: 0 | AZ16: 7 | BA16: 7 | BB16: 1 | BC16: 5 | BD16: 6
A17: 9 | B17: ENFERMAGEM | C17: - | D17: - | E17: - | F17: . | G17: . | H17: . | I17: . | J17: . | K17: . | L17: . | M17: . | N17: . | O17: . | P17: . | Q17: . | R17: . | S17: 10 | T17: 10 | U17: 0 | V17: 23 | W17: 23 | X17: 1 | Y17: 17 | Z17: 18 | AA17: 1 | AB17: 18 | AC17: 19 | AD17: 0 | AE17: 21 | AF17: 21 | AG17: 0 | AH17: 22 | AI17: 22 | AJ17: 0 | AK17: 13 | AL17: 13 | AM17: 2 | AN17: 9 | AO17: 11 | AP17: 14 | AQ17: 1 | AR17: 15 | AS17: 0 | AT17: 0 | AU17: 0 | AV17: 11 | AW17: 0 | AX17: 11 | AY17: 17 | AZ17: 15 | BA17: 32 | BB17: 18 | BC17: 16 | BD17: 34
A18: 10 | B18: ENGENHARIA FLORESTAL | C18: - | D18: - | E18: - | F18: - | G18: - | H18: - | I18: . | J18: . | K18: . | L18: . | M18: . | N18: . | O18: . | P18: . | Q18: . | R18: . | S18: . | T18: . | U18: . | V18: 7 | W18: 7 | X18: 1 | Y18: 11 | Z18: 12 | AA18: 11 | AB18: 10 | AC18: 21 | AD18: 5 | AE18: 8 | AF18: 13 | AG18: 11 | AH18: 0 | AI18: 11 | AJ18: 8 | AK18: 9 | AL18: 17 | AM18: 6 | AN18: 9 | AO18: 15 | AP18: 5 | AQ18: 2 | AR18: 7 | AS18: 6 | AT18: 4 | AU18: 10 | AV18: 6 | AW18: 8 | AX18: 14 | AY18: 0 | AZ18: 6 | BA18: 6 | BB18: 1 | BC18: 2 | BD18: 3
A19: 11 | B19: FÍSICA | C19: . | D19: . | E19: . | F19: . | G19: . | H19: . | I19: . | J19: . | K19: . | L19: 1 | M19: 3 | N19: =SUM(L19:M19) -> 4 | O19: 1 | P19: 0 | Q19: =SUM(O19:P19) -> 1 | R19: 2 | S19: 4 | T19: =SUM(R19:S19) -> 6 | U19: 1 | V19: 4 | W19: 5 | X19: 0 | Y19: 2 | Z19: 2 | AA19: 0 | AB19: 2 | AC19: 2 | AD19: 0 | AE19: 2 | AF19: 2 | AG19: 0 | AH19: 1 | AI19: 1 | AJ19: 0 | AK19: 4 | AL19: 4 | AM19: 1 | AN19: 3 | AO19: 4 | AP19: 0 | AQ19: 1 | AR19: 1 | AS19: 0 | AT19: 3 | AU19: 3 | AV19: 1 | AW19: 2 | AX19: 3 | AY19: 0 | AZ19: 3 | BA19: 3 | BB19: 1 | BC19: 1 | BD19: 2
A20: 12 | B20: FISIOTERAPIA | C20: - | D20: - | E20: - | F20: - | G20: - | H20: - | I20: - | J20: - | K20: - | L20: . | M20: . | N20: . | O20: . | P20: . | Q20: . | R20: . | S20: . | T20: . | U20: . | V20: . | W20: . | X20: . | Y20: 19 | Z20: 19 | AA20: 2 | AB20: 20 | AC20: 22 | AD20: 0 | AE20: 26 | AF20: 26 | AG20: 3 | AH20: 18 | AI20: 21 | AJ20: 0 | AK20: 18 | AL20: 18 | AM20: 2 | AN20: 22 | AO20: 24 | AP20: 6 | AQ20: 20 | AR20: 26 | AS20: 5 | AT20: 0 | AU20: 5 | AV20: 23 | AW20: 9 | AX20: 32 | AY20: 5 | AZ20: 17 | BA20: 22 | BB20: 23 | BC20: 15 | BD20: 38
A21: 13 | B21: GEOGRAFIA - ABI | C21: * | D21: * | E21: * | F21: * | G21: * | H21: * | I21: * | J21: * | K21: * | L21: * | M21: * | N21: * | O21: * | P21: * | Q21: * | R21: * | S21: * | T21: * | U21: * | V21: * | W21: * | X21: * | Y21: * | Z21: * | AA21: * | AB21: * | AC21: * | AD21: * | AE21: * | AF21: * | AG21: * | AH21: * | AI21: * | AJ21: - | AK21: - | AL21: - | AM21: - | AN21: - | AO21: - | AP21: - | AQ21: - | AR21: - | AS21: - | AT21: - | AU21: - | AV21: - | AW21: - | AX21: - | AY21: - | AZ21: - | BA21: - | BD21: 0
A22: 14 | B22: GEOGRAFIA - BACHARELADO | C22: . | D22: 0 | E22: =SUM(C22:D22) -> 0 | F22: 0 | G22: 0 | H22: =SUM(F22:G22) -> 0 | I22: 0 | J22: 1 | K22: =SUM(I22:J22) -> 1 | L22: 1 | M22: 1 | N22: =SUM(L22:M22) -> 2 | O22: 1 | P22: 3 | Q22: =SUM(O22:P22) -> 4 | R22: 1 | S22: 3 | T22: =SUM(R22:S22) -> 4 | U22: 0 | V22: 5 | W22: =SUM(U22:V22) -> 5 | X22: 0 | Y22: 3 | Z22: =SUM(X22:Y22) -> 3 | AA22: 0 | AB22: 3 | AC22: =SUM(AA22:AB22) -> 3 | AD22: 2 | AE22: 3 | AF22: =SUM(AD22:AE22) -> 5 | AG22: 0 | AH22: 6 | AI22: =SUM(AG22:AH22) -> 6 | AJ22: 3 | AK22: 4 | AL22: =SUM(AJ22:AK22) -> 7 | AM22: 0 | AN22: 5 | AO22: =SUM(AM22:AN22) -> 5 | AP22: 1 | AQ22: 1 | AR22: =SUM(AP22:AQ22) -> 2 | AS22: 2 | AT22: 1 | AU22: =SUM(AS22:AT22) -> 3 | AV22: 1 | AW22: 3 | AX22: =SUM(AV22:AW22) -> 4 | AY22: 0 | AZ22: 2 | BA22: =SUM(AY22+AZ22) -> 2 | BB22: 0 | BC22: 1 | BD22: 1
A23: 15 | B23: GEOGRAFIA - LICENCIATURA | C23: . | D23: 0 | E23: 0 | F23: 0 | G23: 5 | H23: 5 | I23: 3 | J23: 11 | K23: 14 | L23: 0 | M23: 12 | N23: 12 | O23: 2 | P23: 8 | Q23: 10 | R23: 6 | S23: 10 | T23: 16 | U23: 5 | V23: 9 | W23: 14 | X23: 1 | Y23: 11 | Z23: 12 | AA23: 0 | AB23: 10 | AC23: 10 | AD23: 2 | AE23: 8 | AF23: 10 | AG23: 1 | AH23: 6 | AI23: 7 | AJ23: 0 | AK23: 3 | AL23: 3 | AM23: 1 | AN23: 4 | AO23: 5 | AP23: 0 | AQ23: 7 | AR23: 7 | AS23: 3 | AT23: 2 | AU23: 5 | AV23: 5 | AW23: 5 | AX23: 10 | AY23: 3 | AZ23: 4 | BA23: 7 | BB23: 0 | BC23: 3 | BD23: 3
A24: 16 | B24: HISTÓRIA | C24: . | D24: . | E24: . | F24: . | G24: . | H24: . | I24: . | J24: . | K24: . | L24: 26 | M24: 14 | N24: 40 | O24: 5 | P24: 23 | Q24: 28 | R24: 3 | S24: 9 | T24: 12 | U24: 2 | V24: 14 | W24: 16 | X24: 1 | Y24: 17 | Z24: 18 | AA24: 2 | AB24: 3 | AC24: 5 | AD24: 7 | AE24: 5 | AF24: 12 | AG24: 1 | AH24: 5 | AI24: 6 | AJ24: 3 | AK24: 12 | AL24: 15 | AM24: 1 | AN24: 11 | AO24: 12 | AP24: 6 | AQ24: 3 | AR24: 9 | AS24: 2 | AT24: 2 | AU24: 4 | AV24: 8 | AW24: 6 | AX24: 14 | AY24: 1 | AZ24: 10 | BA24: 11 | BB24: 2 | BC24: 8 | BD24: 10
A25: 17 | B25: LETRAS - INGLÊS | C25: . | D25: 11 | E25: =SUM(C25:D25) -> 11 | F25: 1 | G25: 12 | H25: =SUM(F25:G25) -> 13 | I25: 0 | J25: 3 | K25: =SUM(I25:J25) -> 3 | L25: 1 | M25: 5 | N25: 6 | O25: 2 | P25: 7 | Q25: 9 | R25: 0 | S25: 2 | T25: 2 | U25: 0 | V25: 2 | W25: 2 | X25: 0 | Y25: 1 | Z25: 1 | AA25: 0 | AB25: 4 | AC25: 4 | AD25: 0 | AE25: 1 | AF25: 1 | AG25: 0 | AH25: 1 | AI25: 1 | AJ25: 0 | AK25: 7 | AL25: 7 | AM25: 1 | AN25: 8 | AO25: 9 | AP25: 0 | AQ25: 2 | AR25: 2 | AS25: 1 | AT25: 7 | AU25: 8 | AV25: 4 | AW25: 1 | AX25: 5 | AY25: 0 | AZ25: 5 | BA25: 5 | BB25: 0 | BC25: 6 | BD25: 6
A26: 18 | B26: LETRAS - PORTUGUÊS | C26: . | D26: 19 | E26: 19 | F26: 0 | G26: 14 | H26: 14 | I26: 1 | J26: 15 | K26: 16 | L26: 0 | M26: 10 | N26: 10 | O26: 1 | P26: 10 | Q26: 11 | R26: 0 | S26: 4 | T26: 4 | U26: 0 | V26: 10 | W26: 10 | X26: 5 | Y26: 1 | Z26: 6 | AA26: 0 | AB26: 6 | AC26: 6 | AD26: 0 | AE26: 3 | AF26: 3 | AG26: 0 | AH26: 1 | AI26: 1 | AJ26: 1 | AK26: 6 | AL26: 7 | AM26: 0 | AN26: 2 | AO26: 2 | AP26: 0 | AQ26: 7 | AR26: 7 | AS26: 1 | AT26: 8 | AU26: 9 | AV26: 5 | AW26: 8 | AX26: 13 | AY26: 5 | AZ26: 4 | BA26: 9 | BB26: 1 | BC26: 3 | BD26: 4
A27: 19 | B27: MATEMÁTICA | C27: . | D27: 0 | E27: 0 | F27: 0 | G27: 10 | H27: 10 | I27: 2 | J27: 5 | K27: 7 | L27: 2 | M27: 4 | N27: 6 | O27: 5 | P27: 7 | Q27: 12 | R27: 2 | S27: 3 | T27: 5 | U27: 0 | V27: 4 | W27: 4 | X27: 1 | Y27: 4 | Z27: 5 | AA27: 0 | AB27: 4 | AC27: 4 | AD27: 2 | AE27: 1 | AF27: 3 | AG27: 0 | AH27: 5 | AI27: 5 | AJ27: 0 | AK27: 3 | AL27: 3 | AM27: 2 | AN27: 1 | AO27: 3 | AP27: 2 | AQ27: 5 | AR27: 7 | AS27: 1 | AT27: 2 | AU27: 3 | AV27: 0 | AW27: 4 | AX27: 4 | AY27: 0 | AZ27: 2 | BA27: 2 | BB27: 2 | BC27: 2 | BD27: 4
A28: 20 | B28: MEDICINA | C28: - | D28: - | E28: - | F28: - | G28: - | H28: - | I28: - | J28: - | K28: - | L28: - | M28: - | N28: - | O28: - | P28: - | Q28: - | R28: - | S28: - | T28: - | U28: - | V28: - | W28: - | X28: - | Y28: . | Z28: . | AA28: . | AB28: . | AC28: . | AD28: . | AE28: . | AF28: . | AG28: . | AH28: . | AI28: . | AJ28: . | AK28: . | AL28: . | AM28: . | AN28: . | AO28: . | AP28: 37 | AQ28: 21 | AR28: 58 | AS28: 28 | AT28: 21 | AU28: 49 | AV28: 0 | AW28: 39 | AX28: 39 | AY28: 24 | AZ28: 24 | BA28: 48 | BB28: 39 | BC28: 0 | BD28: 39
A29: 21 | B29: MEDICINA VETERINÁRIA | C29: . | D29: . | E29: . | F29: . | G29: 0 | H29: =SUM(F29:G29) -> 0 | I29: 0 | J29: 25 | K29: =SUM(I29:J29) -> 25 | L29: 3 | M29: 22 | N29: =SUM(L29:M29) -> 25 | O29: 2 | P29: 19 | Q29: =SUM(O29:P29) -> 21 | R29: 5 | S29: 23 | T29: =SUM(R29:S29) -> 28 | U29: 4 | V29: 16 | W29: =SUM(U29:V29) -> 20 | X29: 5 | Y29: 21 | Z29: =SUM(X29:Y29) -> 26 | AA29: 9 | AB29: 29 | AC29: =SUM(AA29:AB29) -> 38 | AD29: 13 | AE29: 16 | AF29: =SUM(AD29:AE29) -> 29 | AG29: 11 | AH29: 24 | AI29: =SUM(AG29:AH29) -> 35 | AJ29: 11 | AK29: 28 | AL29: =SUM(AJ29:AK29) -> 39 | AM29: 10 | AN29: 20 | AO29: =SUM(AM29:AN29) -> 30 | AP29: 23 | AQ29: 16 | AR29: 39 | AS29: 16 | AT29: 36 | AU29: 52 | AV29: 16 | AW29: 12 | AX29: 28 | AY29: 23 | AZ29: 44 | BA29: 67 | BB29: 15 | BC29: 31 | BD29: 46
A30: 22 | B30: PEDAGOGIA (MATUTINO) | C30: - | D30: - | E30: - | F30: - | G30: - | H30: . | I30: . | J30: . | K30: . | L30: . | M30: . | N30: . | O30: . | P30: . | Q30: . | R30: . | S30: 0 | T30: 0 | U30: 0 | V30: 7 | W30: 7 | X30: 1 | Y30: 4 | Z30: 5 | AA30: 1 | AB30: 6 | AC30: 7 | AD30: 2 | AE30: 6 | AF30: 8 | AG30: 2 | AH30: 7 | AI30: 9 | AJ30: 3 | AK30: 14 | AL30: 17 | AM30: 1 | AN30: 15 | AO30: 16 | AP30: 4 | AQ30: 12 | AR30: 16 | AS30: 5 | AT30: 5 | AU30: 10 | AV30: 5 | AW30: 15 | AX30: 20 | AY30: 7 | AZ30: 7 | BA30: 14 | BB30: 6 | BC30: 10 | BD30: 16
A31: 23 | B31: PEDAGOGIA (NOTURNO) | C31: . | D31: 46 | E31: =SUM(C31:D31) -> 46 | F31: 5 | G31: 39 | H31: =SUM(F31:G31) -> 44 | I31: 3 | J31: 37 | K31: =SUM(I31:J31) -> 40 | L31: 5 | M31: 47 | N31: =SUM(L31:M31) -> 52 | O31: 3 | P31: 40 | Q31: =SUM(O31:P31) -> 43 | R31: 4 | S31: 39 | T31: =SUM(R31:S31) -> 43 | U31: 12 | V31: 28 | W31: 40 | X31: 4 | Y31: 11 | Z31: 15 | AA31: 8 | AB31: 7 | AC31: 15 | AD31: 11 | AE31: 10 | AF31: 21 | AG31: 1 | AH31: 23 | AI31: 24 | AJ31: 4 | AK31: 19 | AL31: 23 | AM31: 3 | AN31: 10 | AO31: 13 | AP31: 11 | AQ31: 12 | AR31: 23 | AS31: 1 | AT31: 9 | AU31: 10 | AV31: 8 | AW31: 4 | AX31: 12 | AY31: 10 | AZ31: 15 | BA31: 25 | BB31: 7 | BC31: 11 | BD31: 18
A32: 24 | B32: PSICOLOGIA | C32: . | D32: . | E32: . | F32: . | G32: . | H32: . | I32: . | J32: . | K32: . | L32: . | M32: . | N32: . | O32: . | P32: 22 | Q32: 22 | R32: 0 | S32: 22 | T32: 22 | U32: 3 | V32: 33 | W32: 36 | X32: 2 | Y32: 28 | Z32: 30 | AA32: 0 | AB32: 29 | AC32: 29 | AD32: 1 | AE32: 32 | AF32: 33 | AG32: 0 | AH32: 25 | AI32: 25 | AJ32: 3 | AK32: 15 | AL32: 18 | AM32: 2 | AN32: 33 | AO32: 35 | AP32: 2 | AQ32: 28 | AR32: 30 | AS32: 8 | AT32: 31 | AU32: 39 | AV32: 2 | AW32: 35 | AX32: 37 | AY32: 2 | AZ32: 32 | BA32: 34 | BB32: 6 | BC32: 22 | BD32: 28
A33: 25 | B33: QUÍMICA - BACHARELADO | C33: - | D33: - | E33: - | F33: - | G33: - | H33: - | I33: - | J33: - | K33: - | L33: - | M33: - | N33: - | O33: - | P33: - | Q33: - | R33: . | S33: . | T33: . | U33: . | V33: . | W33: . | X33: . | Y33: . | Z33: . | AA33: . | AB33: 0 | AC33: 0 | AD33: 0 | AE33: 5 | AF33: 5 | AG33: 0 | AH33: 3 | AI33: 3 | AJ33: 1 | AK33: 3 | AL33: 4 | AM33: 0 | AN33: 5 | AO33: 5 | AP33: 4 | AQ33: 10 | AR33: 14 | AS33: 3 | AT33: 4 | AU33: 7 | AV33: 5 | AW33: 0 | AX33: 5 | AY33: 0 | AZ33: 5 | BA33: 5 | BB33: 2 | BC33: 3 | BD33: 5
A34: 26 | B34: QUÍMICA - LICENCIATURA | C34: . | D34: . | E34: . | F34: . | G34: . | H34: . | I34: . | J34: . | K34: . | L34: 5 | M34: 11 | N34: =SUM(L34:M34) -> 16 | O34: 0 | P34: 11 | Q34: =SUM(O34:P34) -> 11 | R34: 1 | S34: 4 | T34: =SUM(R34:S34) -> 5 | U34: 1 | V34: 5 | W34: =SUM(U34:V34) -> 6 | X34: 2 | Y34: 2 | Z34: =SUM(X34:Y34) -> 4 | AA34: 1 | AB34: 1 | AC34: 2 | AD34: 0 | AE34: 0 | AF34: 0 | AG34: 0 | AH34: 3 | AI34: 3 | AJ34: 2 | AK34: 3 | AL34: 5 | AM34: 2 | AN34: 4 | AO34: 6 | AP34: 1 | AQ34: 5 | AR34: 6 | AS34: 1 | AT34: 4 | AU34: 5 | AV34: 1 | AW34: 0 | AX34: 1 | AY34: 1 | AZ34: 0 | BA34: 1 | BB34: 1 | BC34: 0 | BD34: 1
A35: 27 | B35: ZOOTECNIA | C35: . | D35: . | E35: . | F35: . | G35: . | H35: . | I35: . | J35: . | K35: . | L35: . | M35: . | N35: . | O35: 8 | P35: 7 | Q35: 15 | R35: 1 | S35: 4 | T35: 5 | U35: 6 | V35: 13 | W35: 19 | X35: 5 | Y35: 13 | Z35: 18 | AA35: 4 | AB35: 2 | AC35: 6 | AD35: 7 | AE35: 3 | AF35: 10 | AG35: 1 | AH35: 7 | AI35: 8 | AJ35: 2 | AK35: 7 | AL35: 9 | AM35: 1 | AN35: 2 | AO35: 3 | AP35: 3 | AQ35: 1 | AR35: 4 | AS35: 2 | AT35: 9 | AU35: 11 | AV35: 8 | AW35: 5 | AX35: 13 | AY35: 8 | AZ35: 10 | BA35: 18 | BB35: 3 | BC35: 8 | BD35: 11
B36: TOTAL | C36: =SUM(C9:C35) -> 0 | D36: 91 | E36: 91 | F36: 6 | G36: 132 | H36: 138 | I36: 18 | J36: 160 | K36: 178 | L36: 69 | M36: 201 | N36: 270 | O36: 66 | P36: 249 | Q36: 315 | R36: 45 | S36: 215 | T36: 260 | U36: 56 | V36: 291 | W36: 347 | X36: 61 | Y36: 280 | Z36: 341 | AA36: 67 | AB36: 269 | AC36: 336 | AD36: 81 | AE36: 292 | AF36: 373 | AG36: 61 | AH36: 252 | AI36: 313 | AJ36: 76 | AK36: 289 | AL36: 365 | AM36: 75 | AN36: 273 | AO36: 348 | AP36: 179 | AQ36: 259 | AR36: 438 | AS36: 135 | AT36: 272 | AU36: 407 | AV36: 162 | AW36: 294 | AX36: 456 | AY36: 140 | AZ36: 339 | BA36: 479 | BB36: =SUM(BB9:BB35) -> 157 | BC36: 253 | BD36: 410
B38: Fonte: Centro de Gestão Acadêmica (CGA)
B39: Dados referentes ao sistema semestral
B40: Dados a partir da primeira turma de concluíntes do regime semestral
B41: Legenda: - O curso não existia na Regional Jataí
B42: . O período não corresponde ao prazo mínimo para a integralização curricular da primeira turma
B43: * Geografia Área Básica de Ingresso (ABI), não há concluintes e diplomados. Em 2018 foi extinto. ABI: Designa uma situação em que uma única “entrada” possibilita ao estudante, após a conclusão de um conjunto básico de disciplinas, a escolha de uma entre duas ou mais formações acadêmicas.
B45: Para tal indicador, utilizou-se o conceito de diplomado (formado - graduado) apresentado pelo Censo da Educação Superior: aluno que concluiu a totalidade dos créditos acadêmicos exigidos para titulação no curso durante o ano de referência do Censo.
B47: Fórmula de cálculo:

Sheet 045
A4: UNIVERSIDADE FEDERAL DE JATAÍ
A5: 45. Índice de Sucesso da Graduação por Curso | S5: Atualizada em 06/02/2025
B8: CURSOS | C8: 2007 | D8: 2008 | E8: 2009 | F8: 2010 | G8: 2011 | H8: 2012 | I8: 2013 | J8: 2014 | K8: 2015 | L8: 2016 | M8: 2017 | N8: 2018 | O8: 2019 | P8: 2020 | Q8: 2021 | R8: 2022 | S8: 2023 | T8: 2024 | U8: Duração em Anos
A9: 1 | B9: AGRONOMIA | C9: . | D9: . | E9: . | F9: ='036'!N9/'034'!G9 -> 0.6607142857 | G9: ='036'!Q9/'034'!H9 -> 0.85 | H9: ='036'!T9/'034'!I9 -> 0.4761904762 | I9: ='036'!W9/'034'!J9 -> 0.4776119403 | J9: ='036'!Z9/'034'!K9 -> 0.6153846154 | K9: ='036'!AC9/'034'!L9 -> 0.56 | L9: ='036'!AF9/'034'!M9 -> 0.6527777778 | M9: ='036'!AI9/'034'!N9 -> 0.4473684211 | N9: ='036'!AL9/'034'!O9 -> 0.4307692308 | O9: ='036'!AO9/'034'!P9 -> 0.6164383562 | P9: ='036'!AR9/'034'!Q9 -> 0.5294117647 | Q9: ='036'!AU9/'034'!R9 -> 0.5714285714 | R9: =('036'!AX9/'034'!S9) -> 0.6825396825 | S9: =('036'!BA9/'034'!T9) -> 0.8571428571 | T9: =('036'!BD9/'034'!U9) -> 0.3088235294 | U9: 5
A10: 2 | B10: BIOMEDICINA | C10: . | D10: . | E10: . | F10: . | G10: ='036'!Q10/'034'!I10 -> 0.7692307692 | H10: ='036'!T10/'034'!J10 -> 0.7941176471 | I10: ='036'!W10/'034'!K10 -> 0.5365853659 | J10: ='036'!Z10/'034'!L10 -> 0.55 | K10: ='036'!AC10/'034'!M10 -> 0.511627907 | L10: ='036'!AF10/'034'!N10 -> 0.7674418605 | M10: ='036'!AI10/'034'!O10 -> 0.5 | N10: ='036'!AL10/'034'!P10 -> 0.5517241379 | O10: ='036'!AO10/'034'!Q10 -> 0.6 | P10: ='036'!AR10/'034'!R10 -> 0.2931034483 | Q10: ='036'!AU10/'034'!S10 -> 0.6829268293 | R10: =('036'!AX10/'034'!T10) -> 0.5365853659 | S10: =('036'!BA10/'034'!U10) -> 0.6666666667 | T10: =('036'!BD10/'034'!V10) -> 0.5853658537 | U10: 4
A11: 3 | B11: CIÊNCIAS BIOLÓGICAS - BACHARELADO | C11: - | D11: ='036'!H11/'034'!D11 -> 0.7 | E11: ='036'!K11/'034'!G11 -> 0.7272727273 | F11: ='036'!N11/'034'!H11 -> 0.4230769231 | G11: ='036'!Q11/'034'!I11 -> 0.3571428571 | H11: ='036'!T11/'034'!J11 -> 0.3214285714 | I11: ='036'!W11/'034'!K11 -> 0.2777777778 | J11: ='036'!Z11/'034'!L11 -> 0.2692307692 | K11: ='036'!AC11/'034'!M11 -> 0.32 | L11: ='036'!AF11/'034'!N11 -> 0.1785714286 | M11: ='036'!AI11/'034'!O11 -> 0.2083333333 | N11: ='036'!AL11/'034'!P11 -> 0.1578947368 | O11: ='036'!AO11/'034'!Q11 -> 0.1315789474 | P11: ='036'!AR11/'034'!R11 -> 0.2173913043 | Q11: ='036'!AU11/'034'!S11 -> 0.4285714286 | R11: =('036'!AX11/'034'!T11) -> 0.4375 | S11: =('036'!BA11/'034'!U11) -> 0.2941176471 | T11: =('036'!BD11/'034'!V11) -> 0.1142857143 | U11: 4
A12: 4 | B12: CIÊNCIAS BIOLÓGICAS - LICENCIATURA | C12: - | D12: ='036'!H12/'034'!D12 -> 0.6071428571 | E12: ='036'!K12/'034'!G12 -> 0.7142857143 | F12: ='036'!N12/'034'!H12 -> 0.75 | G12: ='036'!Q12/'034'!I12 -> 0.5294117647 | H12: ='036'!T12/'034'!J12 -> 0.04761904762 | I12: ='036'!W12/'034'!K12 -> 1.142857143 | J12: ='036'!Z12/'034'!L12 -> 0.3636363636 | K12: ='036'!AC12/'034'!M12 -> 0.2307692308 | L12: ='036'!AF12/'034'!N12 -> 0.3076923077 | M12: ='036'!AI12/'034'!O12 -> 0 | N12: ='036'!AL12/'034'!P12 -> 0.1153846154 | O12: ='036'!AO12/'034'!Q12 -> 0.1363636364 | P12: ='036'!AR12/'034'!R12 -> 0.2727272727 | Q12: ='036'!AU12/'034'!S12 -> 0.1153846154 | R12: =('036'!AX12/'034'!T12) -> 0.5517241379 | S12: =('036'!BA12/'034'!U12) -> 0.4285714286 | T12: =('036'!BD12/'034'!V12) -> 0.2222222222 | U12: 4
A13: 5 | B13: CIÊNCIA DA COMPUTAÇÃO | C13: - | D13: . | E13: . | F13: . | G13: . | H13: ='036'!T13/'034'!J13 -> 0.2765957447 | I13: ='036'!W13/'034'!K13 -> 0.3695652174 | J13: ='036'!Z13/'034'!L13 -> 0.1794871795 | K13: ='036'!AC13/'034'!M13 -> 0.243902439 | L13: ='036'!AF13/'034'!N13 -> 0.4375 | M13: ='036'!AI13/'034'!O13 -> 0.4146341463 | N13: ='036'!AL13/'034'!P13 -> 0.1860465116 | O13: ='036'!AO13/'034'!Q13 -> 0.2321428571 | P13: ='036'!AR13/'034'!R13 -> 0.38 | Q13: ='036'!AU13/'034'!S13 -> 0.3488372093 | R13: =('036'!AX13/'034'!T13) -> 0.4081632653 | S13: =('036'!BA13/'034'!U13) -> 0.2340425532 | T13: =('036'!BD13/'034'!V13) -> 0.44 | U13: 4
A14: 6 | B14: DIREITO | C14: - | D14: - | E14: . | F14: . | G14: . | H14: . | I14: . | J14: ='036'!Z14/'034'!K14 -> 0.6101694915 | K14: ='036'!AC14/'034'!L14 -> 0.4927536232 | L14: ='036'!AF14/'034'!M14 -> 0.7671232877 | M14: ='036'!AI14/'034'!N14 -> 0.4657534247 | N14: ='036'!AL14/'034'!O14 -> 0.8591549296 | O14: ='036'!AO14/'034'!P14 -> 0.5 | P14: ='036'!AR14/'034'!Q14 -> 0.6133333333 | Q14: ='036'!AU14/'034'!R14 -> 0.5714285714 | R14: =('036'!AX14/'034'!S14) -> 0.6944444444 | S14: =('036'!BA14/'034'!T14) -> 0.5384615385 | T14: =('036'!BD14/'034'!U14) -> 0.6666666667 | U14: 5
A15: 7 | B15: EDUCAÇÃO FÍSICA - BACHARELADO | C15: - | D15: - | E15: - | F15: . | G15: . | H15: . | I15: . | J15: ='036'!Z15/'034'!L15 -> 0.3714285714 | K15: ='036'!AC15/'034'!M15 -> 0.3076923077 | L15: ='036'!AF15/'034'!N15 -> 0.1219512195 | M15: ='036'!AI15/'034'!O15 -> 0.25 | N15: ='036'!AL15/'034'!P15 -> 0.25 | O15: ='036'!AO15/'034'!Q15 -> 0.387755102 | P15: ='036'!AR15/'034'!R15 -> 0.2127659574 | Q15: ='036'!AU15/'034'!S15 -> 0.5333333333 | R15: =('036'!AX15/'034'!T15) -> 0.2173913043 | S15: =('036'!BA15/'034'!U15) -> 0.4333333333 | T15: =('036'!BD15/'034'!V15) -> 0.2608695652 | U15: 4
A16: 8 | B16: EDUCAÇÃO FÍSICA - LICENCIATURA | C16: - | D16: - | E16: ='036'!K16/'034'!G16 -> 0.641025641 | F16: ='036'!N16/'034'!H16 -> 0.5263157895 | G16: ='036'!Q16/'034'!I16 -> 0.575 | H16: ='036'!T16/'034'!J16 -> 0.4736842105 | I16: ='036'!W16/'034'!K16 -> 0.619047619 | J16: ='036'!Z16/'034'!L16 -> 0.56 | K16: ='036'!AC16/'034'!M16 -> 0.6666666667 | L16: ='036'!AF16/'034'!N16 -> 0.2121212121 | M16: ='036'!AI16/'034'!O16 -> 0.3333333333 | N16: ='036'!AL16/'034'!P16 -> 0.875 | O16: ='036'!AO16/'034'!Q16 -> 0.2903225806 | P16: ='036'!AR16/'034'!R16 -> 0.4 | Q16: ='036'!AU16/'034'!S16 -> 0.3428571429 | R16: =('036'!AX16/'034'!T16) -> 0.4848484848 | S16: =('036'!BA16/'034'!U16) -> 0.3043478261 | T16: =('036'!BD16/'034'!V16) -> 0.2 | U16: 4
A17: 9 | B17: ENFERMAGEM | C17: - | D17: . | E17: . | F17: . | G17: . | H17: . | I17: ='036'!W17/'034'!J17 -> 0.7931034483 | J17: ='036'!Z17/'034'!K17 -> 0.75 | K17: ='036'!AC17/'034'!L17 -> 0.6129032258 | L17: ='036'!AF17/'034'!M17 -> 0.7 | M17: ='036'!AI17/'034'!N17 -> 0.6470588235 | N17: ='036'!AL17/'034'!O17 -> 0.5416666667 | O17: ='036'!AO17/'034'!P17 -> 0.3666666667 | P17: ='036'!AR17/'034'!Q17 -> 0.4545454545 | Q17: ='036'!AU17/'034'!R17 -> 0 | R17: =('036'!AX17/'034'!S17) -> 0.2894736842 | S17: =('036'!BA17/'034'!T17) -> 1.142857143 | T17: =('036'!BD17/'034'!U17) -> 1.172413793 | U17: 5
A18: 10 | B18: ENGENHARIA FLORESTAL | C18: - | D18: - | E18: . | F18: . | G18: . | H18: . | I18: . | J18: ='036'!Z18/'034'!K18 -> 0.2448979592 | K18: ='036'!AC18/'034'!L18 -> 0.4772727273 | L18: ='036'!AF18/'034'!M18 -> 0.2653061224 | M18: ='036'!AI18/'034'!N18 -> 0.275 | N18: ='036'!AL18/'034'!O18 -> 0.3953488372 | O18: ='036'!AO18/'034'!P18 -> 0.306122449 | P18: ='036'!AR18/'034'!Q18 -> 0.1296296296 | Q18: ='036'!AU18/'034'!R18 -> 0.1851851852 | R18: =('036'!AX18/'034'!S18) -> 0.3181818182 | S18: =('036'!BA18/'034'!T18) -> 0.1333333333 | T18: =('036'!BD18/'034'!U18) -> 0.08571428571 | U18: 5
A19: 11 | B19: FÍSICA | C19: . | D19: . | E19: . | F19: ='036'!N19/'034'!H19 -> 0.2352941176 | G19: ='036'!Q19/'034'!I19 -> 0.1666666667 | H19: ='036'!T19/'034'!J19 -> 0.5454545455 | I19: ='036'!W19/'034'!K19 -> 0.3846153846 | J19: ='036'!Z19/'034'!L19 -> 0.1666666667 | K19: ='036'!AC19/'034'!M19 -> 0.25 | L19: ='036'!AF19/'034'!N19 -> 0.3333333333 | M19: ='036'!AI19/'034'!O19 -> 0.05882352941 | N19: ='036'!AL19/'034'!P19 -> 0.1538461538 | O19: ='036'!AO19/'034'!Q19 -> 0.1176470588 | P19: ='036'!AR19/'034'!R19 -> 0.04545454545 | Q19: ='036'!AU19/'034'!S19 -> 0.1363636364 | R19: =('036'!AX19/'034'!T19) -> 0.1304347826 | S19: =('036'!BA19/'034'!U19) -> 0.375 | T19: =('036'!BD19/'034'!V19) -> 0.2 | U19: 4
A20: 12 | B20: FISIOTERAPIA | C20: - | D20: - | E20: - | F20: . | G20: . | H20: . | I20: . | J20: . | K20: ='036'!AC20/'034'!L20 -> 0.55 | L20: ='036'!AF20/'034'!M20 -> 0.7222222222 | M20: ='036'!AI20/'034'!N20 -> 0.4565217391 | N20: ='036'!AL20/'034'!O20 -> 0.4736842105 | O20: ='036'!AO20/'034'!P20 -> 0.7741935484 | P20: ='036'!AR20/'034'!Q20 -> 0.5416666667 | Q20: ='036'!AU20/'034'!R20 -> 0.09615384615 | R20: =('036'!AX20/'034'!S20) -> 0.7619047619 | S20: =('036'!BA20/'034'!T20) -> 0.5365853659 | T20: =('036'!BD20/'034'!U20) -> 1.310344828 | U20: 5
A21: 14 | B21: GEOGRAFIA - BACHARELADO | C21: . | D21: - | E21: ='036'!K22/'034'!G22 -> 0.1111111111 | F21: ='036'!N22/'034'!H22 -> 0.3333333333 | G21: ='036'!Q22/'034'!I22 -> 0.1290322581 | H21: ='036'!T22/'034'!J22 -> 0.5 | I21: ='036'!W22/'034'!K22 -> 0.3125 | J21: ='036'!Z22/'034'!L22 -> 0.25 | K21: ='036'!AC22/'034'!M22 -> 0.75 | L21: ='036'!AF22/'034'!N22 -> 0.3333333333 | M21: ='036'!AI22/'034'!O22 -> 0.5 | N21: ='036'!AL22/'034'!P22 -> 0.4375 | O21: ='036'!AO22/'034'!Q22 -> 0.3125 | P21: ='036'!AR22/'034'!R22 -> 0.2857142857 | Q21: ='036'!AU22/'034'!S22 -> 0.1428571429 | R21: =('036'!AX22/'034'!T22) -> 0.2 | S21: =('036'!BA22/'034'!U22) -> 0.09090909091 | T21: =('036'!BD22/'034'!V22) -> 0.05 | U21: 4
A22: 15 | B22: GEOGRAFIA - LICENCIATURA | C22: . | D22: - | E22: ='036'!K23/'034'!G23 -> 0.4516129032 | F22: ='036'!N23/'034'!H23 -> 0.5 | G22: ='036'!Q23/'034'!I23 -> 0.5555555556 | H22: ='036'!T23/'034'!J23 -> 0.6153846154 | I22: ='036'!W23/'034'!K23 -> 0.6666666667 | J22: ='036'!Z23/'034'!L23 -> 0.5454545455 | K22: ='036'!AC23/'034'!M23 -> 0.7692307692 | L22: ='036'!AF23/'034'!N23 -> 0.7692307692 | M22: ='036'!AI23/'034'!O23 -> 0.4375 | N22: ='036'!AL23/'034'!P23 -> 0.375 | O22: ='036'!AO23/'034'!Q23 -> 0.3846153846 | P22: ='036'!AR23/'034'!R23 -> 0.2692307692 | Q22: ='036'!AU23/'034'!S23 -> 0.2380952381 | R22: =('036'!AX23/'034'!T23) -> 0.4166666667 | S22: =('036'!BA23/'034'!U23) -> 0.4375 | T22: =('036'!BD23/'034'!V23) -> 0.1578947368 | U22: 4
A23: 16 | B23: HISTÓRIA | C23: . | D23: . | E23: . | F23: ='036'!N24/'034'!H24 -> 1.025641026 | G23: ='036'!Q24/'034'!I24 -> 0.7 | H23: ='036'!T24/'034'!J24 -> 0.2666666667 | I23: ='036'!W24/'034'!K24 -> 0.64 | J23: ='036'!Z24/'034'!L24 -> 0.5806451613 | K23: ='036'!AC24/'034'!M24 -> 0.2083333333 | L23: ='036'!AF24/'034'!N24 -> 0.48 | M23: ='036'!AI24/'034'!O24 -> 0.2307692308 | N23: ='036'!AL24/'034'!P24 -> 0.3947368421 | O23: ='036'!AO24/'034'!Q24 -> 0.2926829268 | P23: ='036'!AR24/'034'!R24 -> 0.1836734694 | Q23: ='036'!AU24/'034'!S24 -> 0.1 | R23: =('036'!AX24/'034'!T24) -> 0.2916666667 | S23: =('036'!BA24/'034'!U24) -> 0.2619047619 | T23: =('036'!BD24/'034'!V24) -> 0.2222222222 | U23: 4
A24: 17 | B24: LETRAS - INGLÊS | C24: . | D24: - | E24: ='036'!K25/'034'!G25 -> 0.09677419355 | F24: ='036'!N25/'034'!H25 -> 0.24 | G24: ='036'!Q25/'034'!I25 -> 0.6 | H24: ='036'!T25/'034'!J25 -> 0.125 | I24: ='036'!W25/'034'!K25 -> 0.1428571429 | J24: ='036'!Z25/'034'!L25 -> 0.04545454545 | K24: ='036'!AC25/'034'!M25 -> 0.3076923077 | L24: ='036'!AF25/'034'!N25 -> 0.05555555556 | M24: ='036'!AI25/'034'!O25 -> 0.07142857143 | N24: ='036'!AL25/'034'!P25 -> 0.1842105263 | O24: ='036'!AO25/'034'!Q25 -> 0.3214285714 | P24: ='036'!AR25/'034'!R25 -> 0.1111111111 | Q24: ='036'!AU25/'034'!S25 -> 0.2962962963 | R24: =('036'!AX25/'034'!T25) -> 0.1785714286 | S24: =('036'!BA25/'034'!U25) -> 0.3125 | T24: =('036'!BD25/'034'!V25) -> 0.2142857143 | U24: 4
A25: 18 | B25: LETRAS - PORTUGUÊS | C25: . | D25: - | E25: ='036'!K26/'034'!G26 -> 0.4705882353 | F25: ='036'!N26/'034'!H26 -> 0.2564102564 | G25: ='036'!Q26/'034'!I26 -> 0.44 | H25: ='036'!T26/'034'!J26 -> 0.1481481481 | I25: ='036'!W26/'034'!K26 -> 0.3333333333 | J25: ='036'!Z26/'034'!L26 -> 0.2222222222 | K25: ='036'!AC26/'034'!M26 -> 0.2608695652 | L25: ='036'!AF26/'034'!N26 -> 0.1578947368 | M25: ='036'!AI26/'034'!O26 -> 0.05555555556 | N25: ='036'!AL26/'034'!P26 -> 0.2413793103 | O25: ='036'!AO26/'034'!Q26 -> 0.06451612903 | P25: ='036'!AR26/'034'!R26 -> 0.2413793103 | Q25: ='036'!AU26/'034'!S26 -> 0.2195121951 | R25: =('036'!AX26/'034'!T26) -> 0.3513513514 | S25: =('036'!BA26/'034'!U26) -> 0.2903225806 | T25: =('036'!BD26/'034'!V26) -> 0.1290322581 | U25: 4
A26: 19 | B26: MATEMÁTICA | C26: . | D26: - | E26: ='036'!K27/'034'!G27 -> 0.2333333333 | F26: ='036'!N27/'034'!H27 -> 0.1538461538 | G26: ='036'!Q27/'034'!I27 -> 0.4615384615 | H26: ='036'!T27/'034'!J27 -> 0.2777777778 | I26: ='036'!W27/'034'!K27 -> 0.1818181818 | J26: ='036'!Z27/'034'!L27 -> 0.2380952381 | K26: ='036'!AC27/'034'!M27 -> 0.1904761905 | L26: ='036'!AF27/'034'!N27 -> 0.2142857143 | M26: ='036'!AI27/'034'!O27 -> 0.2380952381 | N26: ='036'!AL27/'034'!P27 -> 0.1034482759 | O26: ='036'!AO27/'034'!Q27 -> 0.1363636364 | P26: ='036'!AR27/'034'!R27 -> 0.2 | Q26: ='036'!AU27/'034'!S27 -> 0.1304347826 | R26: =('036'!AX27/'034'!T27) -> 0.1290322581 | S26: =('036'!BA27/'034'!U27) -> 0.1052631579 | T26: =('036'!BD27/'034'!V27) -> 0.2222222222 | U26: 4
A27: 20 | B27: MEDICINA | C27: - | D27: - | E27: - | F27: - | G27: - | H27: - | I27: - | J27: . | K27: . | L27: . | M27: . | N27: . | O27: . | P27: ='036'!AR28/'034'!P28 -> 0.7532467532 | Q27: ='036'!AU28/'034'!Q28 -> 0.5104166667 | R27: =('036'!AX28/'034'!R28) -> 0.4814814815 | S27: =('036'!BA28/'034'!S28) -> 0.5925925926 | T27: =('036'!BD28/'034'!T28) -> 0.5342465753 | U27: 6
A28: 21 | B28: MEDICINA VETERINÁRIA | C28: . | D28: . | E28: . | F28: ='036'!N29/'034'!G29 -> 0.8333333333 | G28: ='036'!Q29/'034'!H29 -> 0.65625 | H28: ='036'!T29/'034'!I29 -> 1.037037037 | I28: ='036'!W29/'034'!J29 -> 0.4651162791 | J28: ='036'!Z29/'034'!K29 -> 0.4126984127 | K28: ='036'!AC29/'034'!L29 -> 0.6229508197 | L28: ='036'!AF29/'034'!M29 -> 0.4264705882 | M28: ='036'!AI29/'034'!N29 -> 0.6034482759 | N28: ='036'!AL29/'034'!O29 -> 0.609375 | O28: ='036'!AO29/'034'!P29 -> 0.4411764706 | P28: ='036'!AR29/'034'!Q29 -> 0.4814814815 | Q28: ='036'!AU29/'034'!R29 -> 0.7878787879 | R28: =('036'!AX29/'034'!S29) -> 0.4117647059 | S28: =('036'!BA29/'034'!T29) -> 1.046875 | T28: =('036'!BD29/'034'!U29) -> 0.7301587302 | U28: 5
A29: 22 | B29: PEDAGOGIA (MATUTINO) | C29: - | D29: - | E29: . | F29: . | G29: . | H29: . | I29: ='036'!W30/'034'!K30 -> 0.3181818182 | J29: ='036'!Z30/'034'!L30 -> 0.2380952381 | K29: ='036'!AC30/'034'!M30 -> 0.28 | L29: ='036'!AF30/'034'!N30 -> 0.5 | M29: ='036'!AI30/'034'!O30 -> 0.2903225806 | N29: ='036'!AL30/'034'!P30 -> 0.6296296296 | O29: ='036'!AO30/'034'!Q30 -> 0.4210526316 | P29: ='036'!AR30/'034'!R30 -> 0.3720930233 | Q29: ='036'!AU30/'034'!S30 -> 0.2272727273 | R29: =('036'!AX30/'034'!T30) -> 0.5 | S29: =('036'!BA30/'034'!U30) -> 0.3783783784 | T29: =('036'!BD30/'034'!V30) -> 0.5 | U29: 4
A30: 23 | B30: PEDAGOGIA (NOTURNO) | C30: - | D30: ='036'!H31/'034'!D31 -> 0.6285714286 | E30: ='036'!K31/'034'!G31 -> 0.5333333333 | F30: ='036'!N31/'034'!H31 -> 0.7647058824 | G30: ='036'!Q31/'034'!I31 -> 0.5810810811 | H30: ='036'!T31/'034'!J31 -> 0.9772727273 | I30: ='036'!W31/'034'!K31 -> 0.8888888889 | J30: ='036'!Z31/'034'!L31 -> 0.3409090909 | K30: ='036'!AC31/'034'!M31 -> 0.3571428571 | L30: ='036'!AF31/'034'!N31 -> 0.4666666667 | M30: ='036'!AI31/'034'!O31 -> 0.6486486486 | N30: ='036'!AL31/'034'!P31 -> 0.4893617021 | O30: ='036'!AO31/'034'!Q31 -> 0.2549019608 | P30: ='036'!AR31/'034'!R31 -> 0.4893617021 | Q30: ='036'!AU31/'034'!S31 -> 0.1886792453 | R30: =('036'!AX31/'034'!T31) -> 0.2352941176 | S30: =('036'!BA31/'034'!U31) -> 0.6097560976 | T30: =('036'!BD31/'034'!V31) -> 0.4 | U30: 4
A31: 24 | B31: PSICOLOGIA | C31: . | D31: . | E31: . | F31: . | G31: . | H31: ='036'!T32/'034'!I32 -> 0.5945945946 | I31: ='036'!W32/'034'!J32 -> 0.9 | J31: ='036'!Z32/'034'!K32 -> 0.612244898 | K31: ='036'!AC32/'034'!L32 -> 0.58 | L31: ='036'!AF32/'034'!M32 -> 0.8461538462 | M31: ='036'!AI32/'034'!N32 -> 0.5102040816 | N31: ='036'!AL32/'034'!O32 -> 0.5 | O31: ='036'!AO32/'034'!P32 -> 1 | P31: ='036'!AR32/'034'!Q32 -> 0.5084745763 | Q31: ='036'!AU32/'034'!R32 -> 0.829787234 | R31: =('036'!AX32/'034'!S32) -> 0.8222222222 | S31: =('036'!BA32/'034'!T32) -> 0.8095238095 | T31: =('036'!BD32/'034'!U32) -> 0.7777777778 | U31: 5
A32: 25 | B32: QUÍMICA - BACHARELADO | C32: - | D32: - | E32: - | F32: - | G32: - | H32: . | I32: . | J32: . | K32: . | L32: ='036'!AF33/'034'!N33 -> 0.3571428571 | M32: ='036'!AI33/'034'!O33 -> 0.2727272727 | N32: ='036'!AL33/'034'!P33 -> 0.3333333333 | O32: ='036'!AO33/'034'!Q33 -> 0.1923076923 | P32: ='036'!AR33/'034'!R33 -> 0.56 | Q32: ='036'!AU33/'034'!S33 -> 0.3684210526 | R32: =('036'!AX33/'034'!T33) -> 0.2380952381 | S32: =('036'!BA33/'034'!U33) -> 0.2 | T32: =('036'!BD33/'034'!V33) -> 0.2631578947 | U32: 4
A33: 26 | B33: QUÍMICA - LICENCIATURA | C33: . | D33: . | E33: . | F33: ='036'!N34/'034'!H34 -> 0.4571428571 | G33: ='036'!Q34/'034'!I34 -> 0.2820512821 | H33: ='036'!T34/'034'!J34 -> 0.2173913043 | I33: ='036'!W34/'034'!K34 -> 0.4 | J33: ='036'!Z34/'034'!L34 -> 0.2222222222 | K33: ='036'!AC34/'034'!M34 -> 0.1428571429 | L33: ='036'!AF34/'034'!N34 -> 0 | M33: ='036'!AI34/'034'!O34 -> 0.2 | N33: ='036'!AL34/'034'!P34 -> 0.1724137931 | O33: ='036'!AO34/'034'!Q34 -> 0.2 | P33: ='036'!AR34/'034'!R34 -> 0.25 | Q33: ='036'!AU34/'034'!S34 -> 0.2631578947 | R33: =('036'!AX34/'034'!T34) -> 0.05882352941 | S33: =('036'!BA34/'034'!U34) -> 0.07692307692 | T33: =('036'!BD34/'034'!V34) -> 0.1111111111 | U33: 4
A34: 27 | B34: ZOOTECNIA | C34: . | D34: . | E34: . | F34: . | G34: ='036'!Q35/'034'!H35 -> 0.5 | H34: ='036'!T35/'034'!I35 -> 0.15625 | I34: ='036'!W35/'034'!J35 -> 0.5757575758 | J34: ='036'!Z35/'034'!K35 -> 0.6923076923 | K34: ='036'!AC35/'034'!L35 -> 0.2142857143 | L34: ='036'!AF35/'034'!M35 -> 0.3225806452 | M34: ='036'!AI35/'034'!N35 -> 0.2222222222 | N34: ='036'!AL35/'034'!O35 -> 0.36 | O34: ='036'!AO35/'034'!P35 -> 0.1363636364 | P34: ='036'!AR35/'034'!Q35 -> 0.1142857143 | Q34: ='036'!AU35/'034'!R35 -> 0.2619047619 | R34: =('036'!AX35/'034'!S35) -> 0.3611111111 | S34: =('036'!BA35/'034'!T35) -> 0.5294117647 | T34: =('036'!BD35/'034'!U35) -> 0.34375 | U34: 5
B36: Dados referentes ao sistema semestral
B37: Legenda: - O curso não existia na Regional Jataí
B38: . O período não corresponde ao prazo mínimo para a integralização curricular da primeira turma
B39: * Geografia Área Básica de Ingresso (ABI), não há concluintes e diplomados. Em 2018 foi extinto. ABI: Designa uma situação em que uma única “entrada” possibilita ao estudante, após a conclusão de um conjunto básico de disciplinas, a escolha de uma entre duas ou mais formações acadêmicas.
B41: Para obtenção do índice utilizou-se a relação entre os indicadores 36 e 34
B42: Obs: Os índices que excedem 100% correspondem ao maior quantitativo de alunos graduados em relação á quantidade de ingressantes no mesmo ano, em decorrência dos alunos que concluíram o curso após o período mínimo para integralização curricular.
B44: 45.1 Índice de Sucesso da Graduação
C46: 2007 | D46: 2008 | E46: 2009 | F46: 2010 | G46: 2011 | H46: 2012 | I46: 2013 | J46: 2014 | K46: 2015 | L46: 2016 | M46: 2017 | N46: 2018 | O46: 2019 | P46: 2020 | Q46: 2021 | R46: 2022 | S46: 2023 | T46: 2024
B47: Universidade Federal de Jataí | D47: =AVERAGE(D9:D34) -> 0.6452380952 | E47: 0.4421485769 | F47: 0.5114152827 | G47: 0.5095600435 | H47: 0.436145173 | I47: 0.5213141891 | J47: 0.3948369949 | K47: 0.4128094511 | L47: ='036'!AF36/('034'!M9+'034'!N10+'034'!N11+'034'!N12+'034'!N13+'034'!M14+'034'!N15+'034'!N16+'034'!M17+'034'!M18+'034'!N19+'034'!M20+'034'!N22+'034'!N23+'034'!N24+'034'!N25+'034'!N26+'034'!N27+'034'!M29+'034'!N30+'034'!N31+'034'!M32+'034'!N33+'034'!N34+'034'!M35) -> 0.4769820972 | M47: ='036'!AI36/('034'!N9+'034'!O10+'034'!O11+'034'!O12+'034'!O13+'034'!N14+'034'!O15+'034'!O16+'034'!N17+'034'!N18+'034'!O19+'034'!N20+'034'!O22+'034'!O23+'034'!O24+'034'!O25+'034'!O26+'034'!O27+'034'!N29+'034'!O30+'034'!O31+'034'!N32+'034'!O33+'034'!O34+'034'!N35) -> 0.39125 | N47: ='036'!AL36/('034'!O9+'034'!P10+'034'!P11+'034'!P12+'034'!P13+'034'!O14+'034'!P15+'034'!P16+'034'!O17+'034'!O18+'034'!P19+'034'!O20+'034'!P22+'034'!P23+'034'!P24+'034'!P25+'034'!P26+'034'!P27+'034'!O29+'034'!P30+'034'!P31+'034'!O32+'034'!P33+'034'!P34+'034'!O35) -> 0.4161915621 | O47: ='036'!AO36/('034'!P9+'034'!Q10+'034'!Q11+'034'!Q12+'034'!Q13+'034'!P14+'034'!Q15+'034'!Q16+'034'!P17+'034'!P18+'034'!Q19+'034'!P20+'034'!Q22+'034'!Q23+'034'!Q24+'034'!Q25+'034'!Q26+'034'!Q27+'034'!P29+'034'!Q30+'034'!Q31+'034'!P32+'034'!Q33+'034'!Q34+'034'!P35) -> 0.3706070288 | P47: ='036'!AR36/('034'!Q9+'034'!R10+'034'!R11+'034'!R12+'034'!R13+'034'!Q14+'034'!R15+'034'!R16+'034'!Q17+'034'!Q18+'034'!R19+'034'!Q20+'034'!R22+'034'!R23+'034'!R24+'034'!R25+'034'!R26+'034'!R27+'034'!P28+'034'!Q29+'034'!R30+'034'!R31+'034'!Q32+'034'!R33+'034'!R34+'034'!Q35) -> 0.3893333333 | Q47: ='036'!AU36/('034'!R9+'034'!S10+'034'!S11+'034'!S12+'034'!S13+'034'!R14+'034'!S15+'034'!S16+'034'!R17+'034'!R18+'034'!S19+'034'!R20+'034'!S22+'034'!S23+'034'!S24+'034'!S25+'034'!S26+'034'!S27+'034'!Q28+'034'!R29+'034'!S30+'034'!S31+'034'!R32+'034'!S33+'034'!S34+'034'!R35) -> 0.3768518519 | R47: ='036'!AX36/('034'!S9+'034'!T10+'034'!T11+'034'!T12+'034'!T13+'034'!S14+'034'!T15+'034'!T16+'034'!S17+'034'!S18+'034'!T19+'034'!S20+'034'!T22+'034'!T23+'034'!T24+'034'!T25+'034'!T26+'034'!T27+'034'!R28+'034'!S29+'034'!T30+'034'!T31+'034'!S32+'034'!T33+'034'!T34+'034'!S35) -> 0.4305949008 | S47: ='036'!BA36/('034'!T9+'034'!U10+'034'!U11+'034'!U12+'034'!U13+'034'!T14+'034'!U15+'034'!U16+'034'!T17+'034'!T18+'034'!U19+'034'!T20+'034'!U22+'034'!U23+'034'!U24+'034'!U25+'034'!U26+'034'!U27+'034'!S28+'034'!T29+'034'!U30+'034'!U31+'034'!T32+'034'!U33+'034'!U34+'034'!T35) -> 0.5128479657 | T47: ='036'!BD36/('034'!U9+'034'!V10+'034'!V11+'034'!V12+'034'!V13+'034'!U14+'034'!V15+'034'!V16+'034'!U17+'034'!U18+'034'!V19+'034'!U20+'034'!V22+'034'!V23+'034'!V24+'034'!V25+'034'!V26+'034'!V27+'034'!T28+'034'!U29+'034'!V30+'034'!V31+'034'!U32+'034'!V33+'034'!V34+'034'!U35) -> 0.4366347178
B53: 45.2 Índice de Sucesso da Graduação
C55: 2007 | D55: 2008 | E55: 2009 | F55: 2010 | G55: 2011 | H55: 2012 | I55: 2013 | J55: 2014 | K55: 2015 | L55: 2016 | M55: 2017 | N55: 2018 | O55: 2019 | P55: 2020 | Q55: 2021 | R55: 2022 | S55: 2023 | T55: 2024
B56: Universidade Federal de Jataí | D56: ='036'!H36/('034'!C9+'034'!D11+'034'!D12+'034'!D16+'034'!D21+'034'!D22+'034'!D23+'034'!D25+'034'!D26+'034'!D27+'034'!C29+'034'!D31) -> 0.4981949458 | E56: ='036'!K36/('034'!D9+'034'!G11+'034'!G16+'034'!G19+'034'!G22+'034'!G23+'034'!G24+'034'!G25+'034'!G26+'034'!G27+'034'!D29+'034'!G31+'034'!G34+'034'!F35) -> 0.3903508772 | F56: ='036'!N36/('034'!G9+'034'!H10+'034'!H11+'034'!H16+'034'!H19+'034'!H22+'034'!H23+'034'!H24+'034'!H25+'034'!H26+'034'!H27+'034'!G29+'034'!H31+'034'!H34+'034'!G35) -> 0.531496063 | G56: ='036'!Q36/('034'!H9+'034'!I10+'034'!I11+'034'!I13+'034'!I16+'034'!I19+'034'!I22+'034'!I23+'034'!I24+'034'!I25+'034'!I26+'034'!I27+'034'!H29+'034'!I31+'034'!H32+'034'!I34+'034'!H35) -> 0.5545774648 | H56: ='036'!T36/('034'!I9+'034'!J10+'034'!J11+'034'!J13+'034'!J16+'034'!I17+'034'!J19+'034'!J22+'034'!J23+'034'!J24+'034'!J25+'034'!J26+'034'!J27+'034'!I29+'034'!J30+'034'!J31+'034'!I32+'034'!J34+'034'!I35) -> 0.4553415061 | I56: ='036'!W36/('034'!J9+'034'!K10+'034'!K11+'034'!K13+'034'!J14+'034'!K15+'034'!K16+'034'!J17+'034'!J18+'034'!K19+'034'!K22+'034'!K23+'034'!K24+'034'!K25+'034'!K26+'034'!K27+'034'!J29+'034'!K30+'034'!K31+'034'!J32+'034'!K34+'034'!J35) -> 0.4908062235 | J56: ='036'!Z36/('034'!K9+'034'!L10+'034'!L11+'034'!L13+'034'!K14+'034'!L15+'034'!L16+'034'!K17+'034'!K18+'034'!L19+'034'!K20+'034'!L22+'034'!L23+'034'!L24+'034'!L25+'034'!L26+'034'!L27+'034'!K29+'034'!L30+'034'!L31+'034'!K32+'034'!L34+'034'!K35) -> 0.4434330299 | K56: ='036'!AC36/('034'!L9+'034'!M10+'034'!M11+'034'!M13+'034'!L14+'034'!M15+'034'!M16+'034'!L17+'034'!L18+'034'!M19+'034'!L20+'034'!M22+'034'!M23+'034'!M24+'034'!M25+'034'!M26+'034'!M27+'034'!L29+'034'!M30+'034'!M31+'034'!L32+'034'!M33+'034'!M34+'034'!L35) -> 0.4438573316 | L56: ='036'!AF36/('034'!M9+'034'!N10+'034'!N11+'034'!N12+'034'!N13+'034'!M14+'034'!N15+'034'!N16+'034'!M17+'034'!M18+'034'!N19+'034'!M20+'034'!N22+'034'!N23+'034'!N24+'034'!N25+'034'!N26+'034'!N27+'034'!M29+'034'!N30+'034'!N31+'034'!M32+'034'!N33+'034'!N34+'034'!M35) -> 0.4769820972 | M56: ='036'!AI36/('034'!N9+'034'!O10+'034'!O11+'034'!O12+'034'!O13+'034'!N14+'034'!O15+'034'!O16+'034'!N17+'034'!N18+'034'!O19+'034'!N20+'034'!O22+'034'!O23+'034'!O24+'034'!O25+'034'!O26+'034'!O27+'034'!N29+'034'!O30+'034'!O31+'034'!N32+'034'!O33+'034'!O34+'034'!N35) -> 0.39125 | N56: ='036'!AL36/('034'!O9+'034'!P10+'034'!P11+'034'!P12+'034'!P13+'034'!O14+'034'!P15+'034'!P16+'034'!O17+'034'!O18+'034'!P19+'034'!O20+'034'!P22+'034'!P23+'034'!P24+'034'!P25+'034'!P26+'034'!P27+'034'!O29+'034'!P30+'034'!P31+'034'!O32+'034'!P33+'034'!P34+'034'!O35) -> 0.4161915621 | O56: ='036'!AO36/('034'!P9+'034'!Q10+'034'!Q11+'034'!Q12+'034'!Q13+'034'!P14+'034'!Q15+'034'!Q16+'034'!P17+'034'!P18+'034'!Q19+'034'!P20+'034'!Q22+'034'!Q23+'034'!Q24+'034'!Q25+'034'!Q26+'034'!Q27+'034'!P29+'034'!Q30+'034'!Q31+'034'!P32+'034'!Q33+'034'!Q34+'034'!P35) -> 0.3706070288 | P56: ='036'!AR36/('034'!Q9+'034'!R10+'034'!R11+'034'!R12+'034'!R13+'034'!Q14+'034'!R15+'034'!R16+'034'!Q17+'034'!Q18+'034'!R19+'034'!Q20+'034'!R22+'034'!R23+'034'!R24+'034'!R25+'034'!R26+'034'!R27+'034'!P28+'034'!Q29+'034'!R30+'034'!R31+'034'!Q32+'034'!R33+'034'!R34+'034'!Q35) -> 0.3893333333 | Q56: ='036'!AU36/('034'!R9+'034'!S10+'034'!S11+'034'!S12+'034'!S13+'034'!R14+'034'!S15+'034'!S16+'034'!R17+'034'!R18+'034'!S19+'034'!R20+'034'!S22+'034'!S23+'034'!S24+'034'!S25+'034'!S26+'034'!S27+'034'!Q28+'034'!R29+'034'!S30+'034'!S31+'034'!R32+'034'!S33+'034'!S34+'034'!R35) -> 0.3768518519 | R56: ='036'!AX36/('034'!S9+'034'!T10+'034'!T11+'034'!T12+'034'!T13+'034'!S14+'034'!T15+'034'!T16+'034'!S17+'034'!S18+'034'!T19+'034'!S20+'034'!T22+'034'!T23+'034'!T24+'034'!T25+'034'!T26+'034'!T27+'034'!R28+'034'!S29+'034'!T30+'034'!T31+'034'!S32+'034'!T33+'034'!T34+'034'!S35) -> 0.4305949008 | S56: ='036'!BA36/('034'!T9+'034'!U10+'034'!U11+'034'!U12+'034'!U13+'034'!T14+'034'!U15+'034'!U16+'034'!T17+'034'!T18+'034'!U19+'034'!T20+'034'!U22+'034'!U23+'034'!U24+'034'!U25+'034'!U26+'034'!U27+'034'!S28+'034'!T29+'034'!U30+'034'!U31+'034'!T32+'034'!U33+'034'!U34+'034'!T35) -> 0.5128479657 | T56: ='036'!BD36/('034'!U9+'034'!V10+'034'!V11+'034'!V12+'034'!V13+'034'!U14+'034'!V15+'034'!V16+'034'!U17+'034'!U18+'034'!V19+'034'!U20+'034'!V22+'034'!V23+'034'!V24+'034'!V25+'034'!V26+'034'!V27+'034'!T28+'034'!U29+'034'!V30+'034'!V31+'034'!U32+'034'!V33+'034'!V34+'034'!U35) -> 0.4366347178
B59: Fórmula de cálculo:
B62: em que: é o total de alunos que concluíram o curso i no período p; e é a quantidade de alunos que ingressaram no curso i no período p - d, sendo d a duração do curso em períodos.
